{"text_format":"1","workbook":"xlsx","n_sheets":4,"sheets":["Allstudents","from.school","to.school","Failures_and_abandoners"],"not_rendered":{"charts":0,"images":0,"macros":1,"external_links":1,"defined_names":2,"comments":1,"pivot_tables":0},"unopened":[],"bounds":{"document_bytes":16777216,"sheet_cells":100000,"rows_first":2000,"rows_last":500,"rows_between":2000,"halvings":0,"cell_chars":16384,"cell_head_chars":4096},"cells_cut":0,"cells_raw":0,"read":"whole","date_system":"1900"}

{"sheet":"Allstudents","index":0,"n_rows":34,"n_cols":38,"rows_kept":34,"cut":false,"hidden":false,"merged":[]}
[]
[{"$f":"COLUMN()","v":1},{"$f":"COLUMN()","v":2},{"$f":"COLUMN()","v":3},{"$f":"COLUMN()","v":4},{"$f":"COLUMN()","v":5},{"$f":"COLUMN()","v":6},{"$f":"COLUMN()","v":7},{"$f":"COLUMN()","v":8},{"$f":"COLUMN()","v":9},{"$f":"COLUMN()","v":10},{"$f":"COLUMN()","v":11},{"$f":"COLUMN()","v":12},{"$f":"COLUMN()","v":13},{"$f":"COLUMN()","v":14},{"$f":"COLUMN()","v":15},{"$f":"COLUMN()","v":16},{"$f":"COLUMN()","v":17},{"$f":"COLUMN()","v":18},{"$f":"COLUMN()","v":19},{"$f":"COLUMN()","v":20},{"$f":"COLUMN()","v":21},{"$f":"COLUMN()","v":22},{"$f":"COLUMN()","v":23},{"$f":"COLUMN()","v":24},{"$f":"COLUMN()","v":25},{"$f":"COLUMN()","v":26},{"$f":"COLUMN()","v":27},{"$f":"COLUMN()","v":28},{"$f":"COLUMN()","v":29},{"$f":"COLUMN()","v":30},{"$f":"COLUMN()","v":31},{"$f":"COLUMN()","v":32},{"$f":"COLUMN()","v":33},{"$f":"COLUMN()","v":34},{"$f":"COLUMN()","v":35},{"$f":"COLUMN()","v":36},{"$f":"COLUMN()","v":37},{"$f":"COLUMN()","v":38}]
[]
["ت","رقم الجلوس","الرقم السري","الاسم","النوع","يوم","شهر","سنة","اسم الام","اسم ولي الامر","عنوان ولي الامر","رقم الموبايل","حالة القيد","الفصل","مدرسته","التاريخ","المدرسة","المراحل","المحافظة","القضاء","الناحية","القرية","الحالة الاجتماعية","المستوى المعيشي","الحالة المرضية","نوع المرض","الفصل الان","المرحلة","الفصل","الشرط  /  from  ","الشرط/ منقول","الشرط/ تارك"]
[null,null,1001,"A11","ذكر",1,1,2001,"الام1","الولي1","العنوان1","موبايل1","مستمر",1,"الحرية1","1998-09-22",null,null,null,null,null,null,null,null,null,null,1,null,null,"الشرط  /  from  ","منقول",null,null,null,null,null,"الثاني","111/25"]
[null,null,1002,"A12","انثى",2,1,2002,"الام2","الولي2","العنوان2","موبايل2","مستمر",1,"الحرية2","1998-09-23",null,null,null,null,null,null,null,null,null,null,1,null,null,null,"منقول",null,null,null,null,null,"الثاني","110/16"]
[null,null,1003,"A13","ذكر",3,1,2003,"الام3","الولي3","العنوان3","موبايل3","مستمر",1,"الحرية3","1998-09-24",null,null,null,null,null,null,null,null,null,null,1,null,null,"الشرط  /  from  ","منقول",null,null,null,null,null,"الثالث","111/26"]
[null,null,1004,"A14","انثى",4,4,2004,"الام4","الولي4","العنوان4","موبايل4","مستمر",1,null,null,null,null,null,null,null,null,null,null,null,null,1,null,null,"الشرط  /  from  ",null,null,null,null,null,null,"الخامس","110/17"]
[null,null,1005,"A15","ذكر",5,4,2005,"الام5","الولي5","العنوان5","موبايل5","مستمر",1,"الحرية5","1998-09-26",null,null,null,null,null,null,null,null,null,null,1,null,null,"الشرط  /  from  ","منقول",null,null,null,null,null,"السادس","111/27"]
[null,null,1006,"A16","انثى",6,4,2006,"الام6","الولي6","العنوان6","موبايل6","مستمر",1,"الحرية6","1998-09-27",null,null,null,null,null,null,null,null,null,null,1,null,null,"الشرط  /  from  ","منقول",null,null,null,null,null,"يرحل للثانوي","110/18"]
[null,null,1007,"A17","ذكر",7,4,2007,"الام7","الولي7","العنوان7","موبايل7","مستمر",1,"الحرية7","1998-09-28",null,null,null,null,null,null,null,null,null,null,1,null,null,"الشرط  /  from  ","منقول",null,null,null,null,null,"الثاني","111/28"]
[null,null,1008,"A18","انثى",8,8,2008,"الام8","الولي8","العنوان8","موبايل8","مستمر",1,"الحرية8","1998-09-29",null,null,null,null,null,null,null,null,null,null,1,null,null,"الشرط  /  from  ","منقول",null,null,null,null,null,"الثاني","110/19"]
[null,null,1009,"A19","ذكر",9,9,2009,"الام9","الولي9","العنوان9","موبايل9","مستمر",1,"الحرية9","1998-09-30",null,null,null,null,null,null,null,null,null,null,1,null,null,"الشرط  /  from  ","منقول",null,null,null,null,null,"الثالث","111/29"]
[null,null,1010,"A20","انثى",10,10,2010,"الام10","الولي10","العنوان10","موبايل10","مستمر",1,"الحرية10","1998-10-01",null,null,null,null,null,null,null,null,null,null,1,null,null,null,"منقول",null,null,null,null,null,"الرابع","110/20"]
[null,null,1011,"A21","ذكر",11,10,2011,"الام11","الولي11","العنوان11","موبايل11","مستمر",1,null,null,null,null,null,null,null,null,null,null,null,null,5,null,null,null,null,"تارك",null,null,null,null,"السادس","111/30"]
[null,null,1012,"A22","انثى",12,10,2012,"الام12","الولي12","العنوان12","موبايل12","مستمر",1,null,null,"النصر",null,null,null,null,null,null,null,null,null,2,null,null,"from",null,null,null,null,null,null,"يرحل للثانوي","110/21"]
[null,null,1013,"A23","ذكر",13,10,2013,"الام13","الولي13","العنوان13","موبايل13","مستمر",1,null,null,null,null,null,null,null,null,null,null,null,null,6,null,null,null,null,"تارك",null,null,null,null,"الثاني","111/31"]
[null,null,1014,"A24","انثى",14,10,2014,"الام14","الولي14","العنوان14","موبايل14","مستمر",1,null,null,"المرجان",null,null,null,null,null,null,null,null,null,6,null,null,"from",null,null,null,null,null,null,"الثاني","110/22"]
[null,null,1015,"A25","ذكر",15,10,2015,"الام15","الولي15","العنوان15","موبايل15","مستمر",1,null,null,null,null,null,null,null,null,null,null,null,null,5,null,null,null,null,"تارك",null,null,null,null,"الثالث","111/32"]
[null,null,1016,"A26","انثى",16,10,2016,"الام16","الولي16","العنوان16","موبايل16","مستمر",1,null,null,"النوارس",null,null,null,null,null,null,null,null,null,4,null,null,"from",null,null,null,null,null,null,"الخامس","110/23"]
[null,null,1017,"A27","ذكر",17,9,2017,"الام17","الولي17","العنوان17","موبايل17","مستمر",2,null,null,null,null,null,null,null,null,null,null,null,null,6,null,null,null,null,null,null,null,null,null,"السادس","111/33"]
[null,null,1018,"A28","انثى",18,11,2018,"الام18","الولي18","العنوان18","موبايل18","مستمر",2,null,null,"الزوراء",null,null,null,null,null,null,null,null,null,3,null,null,"from",null,null,null,null,null,null,"يرحل للثانوي","110/24"]
[null,null,1019,"A29","ذكر",19,2,2019,"الام19","الولي19","العنوان19","موبايل19","مستمر",2,null,null,null,null,null,null,null,null,null,null,null,null,5,null,null,null,null,null,null,null,null,null,"الثاني","111/34"]
[null,null,1020,"A30","انثى",20,2,2017,"الام20","الولي20","العنوان20","موبايل20","مستمر",2,null,null,"الخلود",null,null,null,null,null,null,null,null,null,5,null,null,"from",null,null,null,null,null,null,"الثاني","110/25"]
[null,null,1021,"A31","ذكر",21,2,2015,"الام21","الولي21","العنوان21","موبايل21","مستمر",2,null,null,null,null,null,null,null,null,null,null,null,null,6,null,null,null,null,null,null,null,null,null,"الثالث","111/35"]
[null,null,1022,"A32","انثى",22,2,2013,"الام22","الولي22","العنوان22","موبايل22","مستمر",2,null,null,"الشهداء",null,null,null,null,null,null,null,null,null,1,null,null,"from",null,null,null,null,null,null,"الخامس","110/26"]
[null,null,1023,"A33","ذكر",23,3,2011,"الام23","الولي23","العنوان23","موبايل23","مستمر",2,null,null,null,null,null,null,null,null,null,null,null,null,null,null,null,null,null,null,null,null,null,null,"السادس","111/36"]
[null,null,1024,"A34","انثى",24,3,2009,"الام24","الولي24","العنوان24","موبايل24","مستمر",2,null,null,null,null,null,null,null,null,null,null,null,null,null,null,null,null,null,null,null,null,null,null,"يرحل للثانوي","110/27"]
[null,null,1025,"A35","ذكر",25,3,2007,"الام25","الولي25","العنوان25","موبايل25","مستمر",2,null,null,null,null,null,null,null,null,null,null,null,null,null,null,null,null,null,null,null,null,null,null,"الثاني","111/37"]
[null,null,1026,"A36","انثى",26,3,2005,"الام26","الولي26","العنوان26","موبايل26","مستمر",2,null,null,null,null,null,null,null,null,null,null,null,null,null,null,null,null,null,null,null,null,null,null,"الثاني","110/28"]
[null,null,1027,"A37","ذكر",27,3,2003,"الام27","الولي27","العنوان27","موبايل27","مستمر",2,null,null,null,null,null,null,null,null,null,null,null,null,null,null,null,null,null,null,null,null,null,null,"الثالث","111/38"]
[null,null,1028,"A38","انثى",28,3,2001,"الام28","الولي28","العنوان28","موبايل28","مستمر",2,null,null,null,null,null,null,null,null,null,null,null,null,null,null,null,null,null,null,null,null,null,null,"الخامس","110/29"]
[null,null,null,null,null,null,null,null,null,null,null,null,null,null,null,null,null,null,null,null,null,null,null,null,null,null,null,null,null,null,null,null,null,null,null,null,"الخامس"]
[null,null,null,null,null,null,null,null,null,null,null,null,null,null,null,null,null,null,null,null,null,null,null,null,null,null,null,null,null,null,null,null,null,null,null,null,"الخامس"]

{"sheet":"from.school","index":1,"n_rows":20,"n_cols":13,"rows_kept":20,"cut":false,"hidden":false,"merged":[]}
[]
[]
[null,"الشرط في العمود  30 وكلمة الشرط from"]
[null,null,null,null,null,null,"المنقولين من المدرسة"]
[null,null,38,4,5,27,13,16,18,19,20,21,"الملاحظات"]
[null,"ت","القيد","الاسم","النوع","الفصل ","حالة القيد ","المدرسة التي نقل اليها","المحافظة","رقم الوثيقة","تاريخها","تاريخ المغادرة"]
[1,null,"111/25","A11","ذكر",1,"مستمر",36060]
[2,null,"111/26","A13","ذكر",1,"مستمر",36062]
[3,null,"110/17","A14","انثى",1,"مستمر"]
[4,null,"111/27","A15","ذكر",1,"مستمر",36064]
[5,null,"110/18","A16","انثى",1,"مستمر",36065]
[6,null,"111/28","A17","ذكر",1,"مستمر",36066]
[7,null,"110/19","A18","انثى",1,"مستمر",36067]
[8,null,"111/29","A19","ذكر",1,"مستمر",36068]
[9,null,"110/21","A22","انثى",2,"مستمر"]
[10,null,"110/22","A24","انثى",6,"مستمر"]
[11,null,"110/23","A26","انثى",4,"مستمر"]
[12,null,"110/24","A28","انثى",3,"مستمر"]
[13,null,"110/25","A30","انثى",5,"مستمر"]
[14,null,"110/26","A32","انثى",1,"مستمر"]

{"sheet":"to.school","index":2,"n_rows":6,"n_cols":9,"rows_kept":6,"cut":false,"hidden":true,"merged":[[4,1,5,1],[4,2,5,2],[4,3,5,3],[4,7,5,7],[4,8,5,8]]}
["الشرط في العمود  31 وكلمة الشرط منقول"]
[null,null,null,"المنقولين الى المدرسة"]
[null,null,"رقم العمود في ورقة Allstudents"]
[null,null,4,27,6,7,8,15,16]
[null,"م","اسم الطالب","الفصل","تاريخ الميلاد",null,null,"المدرسة المرحل منها","تاريخ ترحيله لمدرستنا"]
[null,null,null,null,"يوم ","شهر","سنة"]

{"sheet":"Failures_and_abandoners","index":3,"n_rows":6,"n_cols":12,"rows_kept":6,"cut":false,"hidden":true,"merged":[]}
["الشرط في العمود  32 وكلمة الشرط تارك"]
[]
[null,null,null,null,null,"الراسبون والتاركون"]
[null,"رقم العمود في ورقة Allstudents",null,null,null,null,null,null,"رقم العمود في ورقة Allstudents"]
[null,38,4,27,5,13,6,7,8,10,11,12]
["ت","القيد","الاسم","الفصل","النوع","حالة القيد","يوم","شهر","سنة","اسم ولي الامر","عنوان ولي الامر","رقم الموبايل"]